bitfinex/quotes_BTCUSD_20250428
["timestamp","ask_amount","ask_price","bid_price","bid_amount"]
[1745857625251,0.0008478,93713.0,93707.0,0.22243099]
[1745857625390,0.0008478,93713.0,93707.0,0.31862444]
[1745857625606,0.0008478,93713.0,93707.0,0.32362444]
[1745857625816,0.0008478,93713.0,93707.0,0.20808359]
[1745857626144,0.0008478,93713.0,93707.0,0.21089014]
[1745857626291,0.0008478,93713.0,93707.0,0.28371099]
[1745857626860,0.0008478,93713.0,93707.0,0.33371099]
[1745857627226,0.0008478,93713.0,93707.0,0.42054898]
[1745857630413,0.0008478,93713.0,93707.0,0.37054898]
[1745857630608,0.0008478,93713.0,93707.0,0.41270388]
[1745857631661,0.0008478,93713.0,93707.0,0.39816303]
[1745857632766,0.01984965,93712.0,93707.0,0.39816303]
[1745857633655,0.0008478,93713.0,93707.0,0.39816303]
[1745857634965,0.0198475,93712.0,93707.0,0.39816303]
[1745857635411,0.0681953,93708.0,93707.0,0.14083799]
[1745857635614,0.07415627,93708.0,93707.0,0.14083799]
[1745857635814,0.08494617,93708.0,93707.0,0.14083799]
[1745857636016,0.08494617,93708.0,93707.0,0.13783799]
[1745857636223,0.08494617,93708.0,93707.0,0.16544979]
[1745857636424,0.03744617,93708.0,93707.0,0.27233993]
[1745857636855,0.01014556,93708.0,93707.0,0.27233993]
[1745857637511,0.00680877,93708.0,93707.0,0.26933993]
[1745857638356,0.00680877,93708.0,93707.0,0.24472813]
[1745857638558,0.00680877,93708.0,93707.0,0.24572813]
[1745857639591,0.00680877,93708.0,93707.0,0.13883799]
[1745857639767,0.0800852,93708.0,93707.0,0.13883799]
[1745857639969,0.08594902,93708.0,93707.0,0.13883799]
[1745857640588,0.08594902,93708.0,93707.0,0.13783799]
[1745857641513,0.08594902,93708.0,93707.0,0.15162179]
[1745857643183,0.08594902,93708.0,93707.0,0.13783799]
[1745857644208,0.08594902,93708.0,93707.0,0.24472813]
[1745857644412,0.03734902,93708.0,93707.0,0.24472813]
[1745857645918,0.03734902,93708.0,93707.0,0.13783799]
[1745857650748,0.03734902,93708.0,93707.0,0.051]
[1745857658253,0.08384902,93708.0,93707.0,0.001]
[1745857658463,0.42384902,93708.0,93707.0,0.051]
[1745857658597,0.65222802,93708.0,93707.0,0.001]
[1745857658800,0.42384902,93708.0,93707.0,0.051]
[1745857659000,0.53188302,93708.0,93707.0,0.051]
[1745857659345,0.54233702,93708.0,93707.0,0.051]
[1745857659552,0.53356702,93708.0,93707.0,0.051]
[1745857659856,0.42584902,93708.0,93707.0,0.051]
[1745857660229,0.42384902,93708.0,93707.0,0.051]
[1745857660429,0.55525302,93708.0,93707.0,0.051]
[1745857661231,0.42584902,93708.0,93707.0,0.051]
[1745857662045,0.55401902,93708.0,93707.0,0.051]
[1745857662239,0.56043002,93708.0,93707.0,0.051]
[1745857662642,0.42584902,93708.0,93707.0,0.051]
[1745857663247,0.37934902,93708.0,93707.0,0.15789014]
[1745857663491,0.37934902,93708.0,93707.0,0.17367915]
[1745857663639,0.03934902,93708.0,93707.0,0.17367915]
[1745857663816,0.03934902,93708.0,93707.0,0.26051714]
[1745857664019,0.0314852,93708.0,93707.0,0.26051714]
[1745857664287,0.0314852,93708.0,93707.0,0.26151714]
[1745857664457,0.02814841,93708.0,93707.0,0.26151714]
[1745857666192,0.02814841,93708.0,93707.0,0.26051714]
[1745857666337,0.02814841,93708.0,93707.0,0.26351714]
[1745857667778,0.02814841,93708.0,93707.0,0.32375799]
[1745857671933,0.0206953,93708.0,93707.0,0.32375799]
[1745857672354,0.0008478,93708.0,93707.0,0.32375799]
[1745857672890,0.0008478,93708.0,93707.0,0.33190479]
[1745857673121,0.00745311,93710.0,93707.0,0.33190479]
[1745857673363,0.00745311,93710.0,93708.0,0.1472145]
[1745857673602,0.00745311,93712.0,93708.0,0.1472145]
[1745857674014,0.00745311,93712.0,93711.0,0.05]
[1745857674223,0.00745311,93712.0,93711.0,0.15689014]
[1745857676021,0.00745311,93712.0,93711.0,0.15889014]
[1745857676201,0.00745311,93712.0,93711.0,0.20682506]
[1745857677190,0.00745311,93712.0,93711.0,0.29366305]
[1745857677798,0.0008478,93713.0,93711.0,0.29366305]
[1745857677999,0.0008478,93713.0,93712.0,0.10902403]
[1745857678454,0.0008478,93713.0,93712.0,0.15902403]
[1745857678655,0.0008478,93713.0,93712.0,0.20961855]
[1745857679218,0.0008478,93713.0,93712.0,0.21061855]
[1745857679812,0.0008478,93713.0,93712.0,0.21261855]
[1745857680025,0.00418508,93713.0,93712.0,0.21261855]
[1745857681802,0.00418508,93713.0,93712.0,0.21475245]
[1745857683125,0.00418508,93713.0,93712.0,0.30159044]
[1745857683280,0.00418508,93713.0,93712.0,0.29945654]
[1745857685278,0.00418508,93713.0,93712.0,0.67271722]
[1745857685936,0.0008478,93713.0,93712.0,0.67271722]
[1745857686142,0.000848,93719.0,93718.0,0.40139636]
[1745857686349,0.000848,93719.0,93718.0,0.67721749]
[1745857686519,0.000848,93719.0,93718.0,0.72401749]
[1745857687396,0.00130526,93719.0,93718.0,0.72401749]
[1745857688459,0.00130526,93719.0,93718.0,0.72501749]
[1745857688956,0.00130526,93719.0,93718.0,0.72401749]
[1745857689162,0.00230526,93719.0,93718.0,0.72401749]
[1745857691407,0.00230526,93719.0,93718.0,0.29388033]
[1745857691599,0.00230526,93719.0,93718.0,0.35184033]
[1745857691803,0.00230526,93719.0,93718.0,0.24388033]
[1745857691936,0.00230526,93719.0,93718.0,0.35184033]
[1745857692169,0.00130526,93719.0,93718.0,0.24388033]
[1745857692373,0.00130526,93719.0,93718.0,0.37618836]
[1745857694188,0.00130526,93719.0,93718.0,0.37918836]
[1745857694743,0.00130526,93719.0,93718.0,0.37618836]
[1745857694887,0.00130526,93719.0,93718.0,0.38018836]
[1745857695490,0.00130526,93719.0,93718.0,0.37618836]
[1745857695740,0.00130526,93719.0,93718.0,0.37818836]
[1745857696413,0.00130526,93719.0,93718.0,0.19588033]
[1745857696618,0.04690526,93719.0,93718.0,0.053]
[1745857696823,0.45938197,93719.0,93718.0,0.003]
[1745857697024,0.46271908,93719.0,93718.0,0.053]
[1745857697218,0.47017219,93719.0,93718.0,0.051]
[1745857697426,0.47017219,93719.0,93718.0,0.055]
[1745857697582,0.69388919,93719.0,93718.0,0.055]
[1745857698124,0.69388919,93719.0,93718.0,0.051]
[1745857699996,0.42297219,93719.0,93718.0,0.051]
[1745857700194,0.37737219,93719.0,93718.0,0.15789014]
[1745857700458,0.37737219,93719.0,93718.0,0.17367915]
[1745857700756,0.38137219,93719.0,93718.0,0.17367915]
[1745857700965,0.37391908,93719.0,93718.0,0.17367915]
[1745857701166,0.36991908,93719.0,93718.0,0.17367915]
[1745857701372,0.37091908,93719.0,93718.0,0.17367915]
[1745857702364,0.37091908,93719.0,93718.0,0.15789014]
[1745857704726,0.36991908,93719.0,93718.0,0.15789014]
[1745857708343,0.36991908,93719.0,93718.0,0.15989014]
[1745857709401,0.01005621,93719.0,93718.0,0.24588033]
[1745857709603,0.00464237,93719.0,93718.0,0.28500921]
[1745857709802,0.00130526,93719.0,93718.0,0.33190921]
[1745857710419,0.00130526,93719.0,93718.0,0.31736836]
[1745857710626,0.00130526,93719.0,93718.0,0.27046836]
[1745857712056,0.00130526,93719.0,93718.0,0.33500921]
[1745857712262,0.00130526,93719.0,93718.0,0.33600921]
[1745857712906,0.00130526,93719.0,93718.0,0.42900921]
[1745857713307,0.00130526,93719.0,93718.0,0.42700921]
[1745857713645,0.00130526,93719.0,93718.0,0.43000921]
[1745857714226,0.0008488,93727.0,93725.0,0.102]
[1745857714457,0.0008488,93727.0,93725.0,0.50123353]
[1745857714695,0.0008488,93727.0,93725.0,0.82159353]
[1745857717063,0.0008488,93727.0,93725.0,0.82259353]
[1745857718911,0.0008488,93727.0,93725.0,1.03598376]
[1745857719740,0.0008484,93755.0,93725.0,1.37598376]
[1745857719860,0.0008484,93755.0,93741.0,0.42899466]
[1745857720066,0.0008484,93755.0,93741.0,0.5358848]
[1745857720924,0.0008484,93755.0,93741.0,0.5378848]
[1745857721113,0.0008484,93755.0,93741.0,0.64477494]
[1745857721676,0.0008484,93755.0,93741.0,0.64277494]
[1745857722066,0.0008484,93755.0,93741.0,0.42942113]
[1745857723005,0.004,93742.0,93741.0,0.42942113]
[1745857725300,0.004,93742.0,93741.0,0.53714113]
[1745857726041,0.004,93742.0,93741.0,0.43804113]
[1745857727103,0.004,93742.0,93741.0,0.44595807]
[1745857729988,0.004,93742.0,93741.0,0.51882002]
[1745857730214,0.004,93742.0,93741.0,0.73217383]
[1745857735829,0.0008484,93755.0,93745.0,0.39874751]
[1745857736064,0.0008484,93755.0,93745.0,0.61252779]
[1745857737023,0.0008484,93755.0,93745.0,0.61752779]
[1745857738530,0.0008484,93755.0,93745.0,0.66632779]
[1745857740759,0.01621013,93756.0,93755.0,0.31532195]
[1745857740955,0.01621013,93756.0,93755.0,0.56263812]
[1745857741630,0.00745311,93769.0,93755.0,0.56263812]
[1745857741631,0.00745311,93769.0,93758.0,0.37555598]
[1745857741832,0.00745311,93769.0,93758.0,0.48244612]
[1745857742037,0.00745311,93769.0,93758.0,0.53054612]
[1745857742244,0.00745311,93769.0,93758.0,0.63743626]
[1745857742600,0.00745311,93769.0,93758.0,0.74495626]
[1745857743014,0.00745311,93769.0,93758.0,0.74295626]
[1745857743309,0.00745311,93769.0,93758.0,0.74495626]
[1745857743540,0.005,93759.0,93758.0,0.74495626]
[1745857746927,0.00745311,93779.0,93758.0,0.74495626]
[1745857746928,0.00745311,93779.0,93778.0,0.42577363]
[1745857747245,0.00759032,93779.0,93778.0,0.63955391]
[1745857748021,0.00013721,93779.0,93778.0,0.63955391]
[1745857749707,4.39e-05,93779.0,93778.0,0.63955391]
[1745857753297,0.0008474,93797.0,93778.0,0.63955391]
[1745857753298,0.0008474,93797.0,93788.0,0.32978774]
[1745857753497,0.0008474,93797.0,93788.0,0.54419788]
[1745857753741,0.0008474,93797.0,93788.0,0.65108802]
[1745857755570,0.0008474,93797.0,93788.0,0.65508802]
[1745857755914,0.0008474,93797.0,93788.0,0.65108802]
[1745857757581,0.0008474,93797.0,93788.0,0.33780113]
[1745857757789,0.0008474,93797.0,93788.0,0.28091099]
[1745857757790,0.0471,93796.0,93788.0,0.28091099]
[1745857757991,0.0471,93796.0,93788.0,0.33091099]
[1745857759369,0.0471,93796.0,93788.0,0.38003464]
[1745857762015,0.0008474,93797.0,93788.0,0.38003464]
[1745857764839,0.0008474,93797.0,93788.0,0.28003464]
[1745857765044,0.0008474,93797.0,93788.0,0.62448386]
[1745857765501,0.0008474,93797.0,93788.0,0.41123697]
[1745857766367,0.0008474,93797.0,93788.0,0.43113861]
[1745857769533,0.0008474,93797.0,93788.0,0.47723861]
[1745857770115,0.0008474,93797.0,93788.0,0.4872148]
[1745857770966,0.049,93812.0,93798.0,0.04142865]
[1745857771177,0.046,93814.0,93801.0,0.43664833]
[1745857771375,0.046,93814.0,93801.0,0.530512]
[1745857772186,0.046,93814.0,93801.0,0.55041364]
[1745857772917,0.046,93814.0,93801.0,0.55341364]
[1745857773092,0.0008476,93820.0,93801.0,0.60011364]
[1745857774041,0.0008476,93820.0,93801.0,0.64811364]
[1745857775222,0.0498474,93817.0,93801.0,0.55341364]
[1745857776938,0.0498474,93817.0,93816.0,0.06554085]
[1745857777145,0.05030485,93817.0,93816.0,0.31379068]
[1745857777469,0.05030485,93817.0,93816.0,0.33369232]
[1745857778017,0.00130485,93817.0,93816.0,0.33369232]
[1745857778666,0.00130485,93817.0,93816.0,0.31379068]
[1745857780842,0.00068703,93817.0,93816.0,0.333723]
[1745857781049,0.00068703,93817.0,93816.0,0.226403]
[1745857781365,0.00068703,93817.0,93816.0,0.333723]
[1745857782765,0.00068703,93817.0,93816.0,0.37430405]
[1745857783809,0.00068703,93817.0,93816.0,0.6384873]
[1745857785644,0.00068703,93817.0,93816.0,0.6446594]
[1745857785858,0.00068703,93817.0,93816.0,0.6466594]
[1745857786049,0.00068703,93817.0,93816.0,0.5393394]
[1745857786252,0.00068703,93817.0,93816.0,0.6466594]
[1745857786414,0.00068703,93817.0,93816.0,0.6476594]
[1745857786651,0.00068703,93817.0,93816.0,0.43447615]
[1745857786884,0.00068703,93817.0,93816.0,0.38347615]
[1745857791463,0.00068703,93817.0,93816.0,0.6476194]
[1745857791705,0.00068703,93817.0,93816.0,0.43443615]
[1745857792143,0.00068703,93817.0,93816.0,0.43343615]
[1745857792348,0.00068703,93817.0,93816.0,0.33343615]
[1745857792631,0.00068703,93817.0,93816.0,0.38343615]
[1745857794412,0.00068703,93817.0,93816.0,0.3688953]
[1745857794607,0.00068703,93817.0,93816.0,0.3788572]
[1745857795979,0.00068703,93817.0,93816.0,0.37885351]
[1745857798132,0.00068703,93817.0,93816.0,0.36889161]
[1745857802611,0.00068703,93817.0,93816.0,0.43443246]
[1745857803391,0.00068703,93817.0,93816.0,0.32715246]
[1745857803549,0.00068703,93817.0,93816.0,0.43435246]
[1745857805889,0.00068703,93817.0,93816.0,0.43335246]
[1745857806290,0.00068703,93817.0,93816.0,0.32615246]
[1745857806543,0.00068703,93817.0,93816.0,0.43335246]
[1745857807681,0.00068703,93817.0,93816.0,0.43435246]
[1745857809030,0.00068703,93817.0,93816.0,0.64753571]
[1745857809247,0.00068703,93817.0,93816.0,0.65829437]
[1745857810062,0.00454887,93836.0,93835.0,0.051]
[1745857810267,0.00468599,93836.0,93835.0,0.19847119]
[1745857810491,0.00468599,93836.0,93835.0,0.23824694]
[1745857810691,0.00468599,93836.0,93835.0,0.21839982]
[1745857810895,0.10123477,93836.0,93835.0,0.21839982]
[1745857811207,0.09938599,93836.0,93835.0,0.32559982]
[1745857811612,0.09938599,93836.0,93835.0,0.30567119]
[1745857811849,0.09938599,93836.0,93835.0,0.33623831]
[1745857812020,0.09938599,93836.0,93835.0,0.19847119]
[1745857812227,0.09938599,93836.0,93835.0,0.19878105]
[1745857812434,0.09938599,93836.0,93835.0,0.09158105]
[1745857812632,0.09938599,93836.0,93835.0,0.19878105]
[1745857814663,0.09929271,93836.0,93835.0,0.19878105]
[1745857815038,0.09929271,93836.0,93835.0,0.17807811]
[1745857815947,0.09929271,93836.0,93835.0,0.051]
[1745857815948,0.44114149,93836.0,93835.0,0.051]
[1745857816301,0.44114149,93836.0,93834.0,0.001]
[1745857816302,0.4345,93835.0,93834.0,0.001]
[1745857816444,0.4345,93835.0,93817.0,0.04058105]
[1745857816445,0.0945,93825.0,93824.0,0.05]
[1745857816648,2.93317284,93825.0,93824.0,0.05]
[1745857816911,0.0945,93823.0,93822.0,0.05]
[1745857817059,3.30563762,93823.0,93822.0,0.05]
[1745857817263,0.0945,93821.0,93820.0,0.05]
[1745857817473,0.34,93820.0,93818.0,0.05]
[1745857817668,0.34,93818.0,93814.0,0.05]
[1745857817864,0.0945,93815.0,93814.0,0.05]
[1745857818185,1.85379046,93815.0,93814.0,0.05]
[1745857818355,2.77441262,93815.0,93814.0,0.05]
[1745857818569,2.94567762,93815.0,93814.0,0.05]
[1745857818767,2.97559126,93815.0,93814.0,0.05]
[1745857819373,2.05389762,93815.0,93814.0,0.05]
[1745857819595,2.05389762,93815.0,93813.0,0.05]
[1745857819596,0.389,93814.0,93813.0,0.05]
[1745857819807,1.687821,93814.0,93813.0,0.05]
[1745857820007,1.6943968,93814.0,93813.0,0.05]
[1745857820569,1.4750738,93814.0,93813.0,0.05]
[1745857821290,0.4453758,93814.0,93813.0,0.05]
[1745857821716,0.1053758,93814.0,93813.0,0.05]
[1745857821878,0.1083758,93814.0,93813.0,0.05]
[1745857822899,0.1053758,93814.0,93813.0,0.05]
[1745857823278,0.1083758,93814.0,93813.0,0.05]
[1745857824549,0.1053758,93814.0,93813.0,0.05]
[1745857824758,0.1083758,93814.0,93813.0,0.05]
[1745857828458,0.0095758,93814.0,93813.0,0.15689014]
[1745857828628,0.0095758,93814.0,93813.0,0.17257915]
[1745857828835,0.003,93814.0,93813.0,0.21907915]
[1745857829044,0.003,93814.0,93813.0,0.31816291]
[1745857829260,0.00745942,93825.0,93819.0,0.01454085]
[1745857829458,0.00745942,93825.0,93824.0,0.2569739]
[1745857829663,0.0004235,93840.0,93835.0,0.22768093]
[1745857829815,0.0004235,93840.0,93835.0,0.48207107]
[1745857830018,0.0004235,93840.0,93835.0,0.52887107]
[1745857830219,0.0004235,93840.0,93835.0,0.5487303]
[1745857834175,0.0004235,93840.0,93835.0,0.6558103]
[1745857834378,0.0004235,93840.0,93835.0,0.76270044]
[1745857834731,0.0004235,93840.0,93835.0,0.76370044]
[1745857835966,0.0004235,93840.0,93835.0,0.77154113]
[1745857836163,0.0004235,93840.0,93835.0,0.77054113]
[1745857837592,0.0004235,93840.0,93835.0,0.77254113]
[1745857839213,0.0004235,93840.0,93839.0,0.32867185]
[1745857839459,0.0004235,93840.0,93839.0,0.22932113]
[1745857839660,0.0004235,93840.0,93839.0,0.34918036]
[1745857839864,0.0004235,93840.0,93839.0,0.45626036]
[1745857840292,0.0004235,93840.0,93839.0,0.34918036]
[1745857840587,0.0004235,93840.0,93839.0,0.45626036]
[1745857842731,0.0004235,93840.0,93839.0,0.24229022]
[1745857842903,0.0004235,93840.0,93839.0,0.14229022]
[1745857843104,0.0004235,93840.0,93839.0,0.28382937]
[1745857843245,0.0004235,93840.0,93839.0,0.27851099]
[1745857845027,0.0004235,93840.0,93839.0,0.17143099]
[1745857845206,0.0004235,93840.0,93839.0,0.27851099]
[1745857853303,0.0004235,93840.0,93839.0,0.49264199]
[1745857853501,0.0004235,93840.0,93839.0,0.54124199]
[1745857854054,0.0004235,93840.0,93839.0,0.56108418]
[1745857855155,0.0004235,93840.0,93839.0,0.56208418]
[1745857856690,0.0004235,93840.0,93839.0,0.30031318]
[1745857856866,0.0004235,93840.0,93839.0,0.34178428]
[1745857857078,0.0004235,93840.0,93839.0,0.34078428]
[1745857857436,0.0004235,93840.0,93839.0,0.32194209]
[1745857857644,0.0004235,93840.0,93839.0,0.17343099]
[1745857857863,0.0004235,93840.0,93839.0,0.27947099]
[1745857858413,0.0004235,93840.0,93839.0,0.49360199]
[1745857858818,0.0004235,93840.0,93839.0,0.53880199]
[1745857859137,0.0004235,93840.0,93839.0,0.58880199]
[1745857859297,0.0004235,93840.0,93839.0,0.64569213]
[1745857859637,0.0004235,93840.0,93839.0,0.69569213]
[1745857860001,0.0004235,93840.0,93839.0,0.71562878]
[1745857860809,0.0004235,93840.0,93839.0,0.76072878]
[1745857862116,0.0004235,93840.0,93839.0,0.74079213]
[1745857862393,0.0004235,93840.0,93839.0,0.47766113]
[1745857862603,0.0004235,93840.0,93839.0,0.28047099]
[1745857863042,0.0004235,93840.0,93839.0,0.28147099]
[1745857863475,0.0004235,93840.0,93839.0,0.49460199]
[1745857864134,0.0004235,93840.0,93839.0,0.28147099]
[1745857864985,0.0004235,93840.0,93839.0,0.32957099]
[1745857865421,0.0004235,93840.0,93839.0,0.48646113]
[1745857866965,0.0004235,93840.0,93839.0,0.69959213]
[1745857867779,0.0004235,93840.0,93839.0,0.74869213]
[1745857868998,0.0004235,93840.0,93839.0,0.7591278]
[1745857869378,0.0004235,93840.0,93839.0,0.7581278]
[1745857872052,0.0004235,93840.0,93839.0,0.7580078]
[1745857872275,0.0004235,93840.0,93839.0,0.6510878]
[1745857872514,0.0004235,93840.0,93839.0,0.7570078]
[1745857872769,0.0004235,93840.0,93839.0,0.24078666]
[1745857873009,0.0004235,93840.0,93839.0,0.45391766]
[1745857873232,0.0004235,93840.0,93839.0,0.29078666]
[1745857874138,0.0004235,93840.0,93839.0,0.28035099]
[1745857874358,0.0004235,93840.0,93839.0,0.26581014]
[1745857874601,0.0004235,93840.0,93839.0,0.3322269]
[1745857876509,0.0004235,93840.0,93839.0,0.3352269]
[1745857876909,0.0004235,93840.0,93839.0,0.3322269]
[1745857877108,0.0004235,93840.0,93839.0,0.3362269]
[1745857878045,0.0004235,93840.0,93839.0,0.2293069]
[1745857878400,0.0004235,93840.0,93839.0,0.3362269]
[1745857880058,0.0004235,93840.0,93839.0,0.3322269]
[1745857880259,0.0004235,93840.0,93839.0,0.3372269]
[1745857882013,0.0004235,93840.0,93839.0,0.3322269]
[1745857882256,0.0004235,93840.0,93839.0,0.3372269]
[1745857884563,0.0004235,93840.0,93839.0,0.5503579]
[1745857884944,0.0004235,93840.0,93839.0,0.6003579]
[1745857885431,0.0004235,93855.0,93852.0,0.27864232]
[1745857885635,0.0004235,93855.0,93852.0,0.5406226]
[1745857886396,0.0004235,93855.0,93852.0,0.56053217]
[1745857886713,0.0004235,93855.0,93852.0,0.56253217]
[1745857891292,0.00748335,93873.0,93865.0,0.01454085]
[1745857891470,0.00748335,93873.0,93869.0,0.10689014]
[1745857891471,0.00505117,93871.0,93869.0,0.10689014]
[1745857891671,0.00056084,93872.0,93869.0,0.10689014]
[1745857892003,0.0495,93870.0,93869.0,0.10689014]
[1745857892691,0.05698335,93870.0,93869.0,0.10689014]
[1745857893101,0.05698335,93870.0,93869.0,0.21381014]
[1745857894272,0.05798335,93870.0,93869.0,0.21381014]
[1745857894490,0.05798335,93870.0,93869.0,0.32544687]
[1745857894952,0.06303796,93870.0,93869.0,0.26381014]
[1745857897157,0.06303796,93870.0,93869.0,0.66636734]
[1745857897401,0.01353796,93870.0,93869.0,0.68090819]
[1745857897896,0.001,93870.0,93869.0,0.68090819]
[1745857898111,0.001,93870.0,93869.0,0.74909901]
[1745857898362,0.001,93870.0,93869.0,0.76899955]
[1745857898560,0.001,93870.0,93869.0,0.68626788]
[1745857898969,0.001,93870.0,93869.0,0.66624734]
[1745857899531,0.00848335,93870.0,93869.0,0.66624734]
[1745857906443,0.00848335,93870.0,93869.0,0.68615703]
[1745857906791,0.001,93870.0,93869.0,0.68615703]
[1745857906993,0.001,93870.0,93869.0,0.75477273]
[1745857907422,0.001,93870.0,93869.0,0.76931358]
[1745857909768,0.001,93870.0,93869.0,0.70069788]
[1745857910231,0.00848119,93870.0,93869.0,0.70069788]
[1745857911693,0.001,93870.0,93869.0,0.70069788]
[1745857911902,0.001,93870.0,93869.0,0.70169788]
[1745857913327,0.00056084,93872.0,93871.0,0.46609805]
[1745857913529,0.00056084,93872.0,93871.0,0.68087833]
[1745857913774,0.00056084,93872.0,93871.0,0.70078802]
[1745857914245,0.00056084,93872.0,93871.0,0.80758802]
[1745857915063,0.00056084,93872.0,93871.0,0.80858802]
[1745857917018,0.00056084,93872.0,93871.0,0.81058802]
[1745857917187,0.00056084,93872.0,93871.0,1.02364636]
[1745857918961,6.084e-05,93872.0,93871.0,1.02364636]
[1745857920948,0.00986104,93883.0,93878.0,0.01454085]
[1745857921290,0.00986104,93883.0,93882.0,0.12143099]
[1745857921630,0.33255569,93890.0,93883.0,0.01454085]
[1745857921831,0.33255569,93890.0,93884.0,0.21365014]
[1745857922036,0.08454291,93905.0,93889.0,0.05]
[1745857922245,0.33269465,93899.0,93890.0,0.17679983]
[1745857922447,0.33269465,93899.0,93890.0,0.24676562]
[1745857923815,0.0024238,93891.0,93890.0,0.24676562]
[1745857924009,0.66754225,93899.0,93898.0,0.05]
[1745857924213,0.66754225,93899.0,93898.0,0.15689014]
[1745857924573,0.34,93899.0,93898.0,0.15689014]
[1745857925125,0.33311845,93908.0,93902.0,0.05]
[1745857925477,0.04813702,93903.0,93902.0,0.15689014]
[1745857926177,0.04813702,93903.0,93902.0,0.17257915]
[1745857926822,0.05013702,93903.0,93902.0,0.17257915]
[1745857927437,0.04013702,93903.0,93902.0,0.17257915]
[1745857927692,0.04013702,93903.0,93902.0,0.15689014]
[1745857928373,0.00213702,93903.0,93902.0,0.55844734]
[1745857929028,0.34,93911.0,93910.0,0.05]
[1745857929259,0.34,93911.0,93910.0,0.15689014]
[1745857930142,0.34,93911.0,93910.0,0.22339487]
[1745857930795,0.0491,93912.0,93910.0,0.15689014]
[1745857931009,0.0491,93912.0,93911.0,0.10689014]
[1745857931232,0.0491,93912.0,93911.0,0.15689014]
[1745857932849,0.3886236,93917.0,93916.0,0.05]
[1745857932989,0.3786236,93917.0,93916.0,0.15689014]
[1745857933196,0.3786236,93917.0,93916.0,0.17257915]
[1745857933642,0.3786236,93917.0,93916.0,0.15689014]
[1745857934726,0.34,93917.0,93916.0,0.15689014]
[1745857935784,0.0495,93919.0,93916.0,0.15689014]
[1745857935996,0.2004236,93929.0,93908.0,0.4015572]
[1745857935997,0.0496,93924.0,93917.0,0.15689014]
[1745857936808,0.0496,93924.0,93917.0,0.10689014]
[1745857937121,0.0496,93924.0,93908.0,0.4015572]
[1745857937122,0.0531,93925.0,93916.0,0.05]
[1745857937321,0.0976,93917.0,93916.0,0.05]
[1745857937777,0.4376,93917.0,93916.0,0.05]
[1745857938366,0.4376,93917.0,93915.0,0.05]
[1745857938569,0.4376,93917.0,93916.0,0.05]
[1745857939121,0.4376,93917.0,93908.0,0.4015572]
[1745857939304,0.34,93915.0,93910.0,0.05]
[1745857939506,0.0474,93912.0,93908.0,0.4515572]
[1745857939707,0.34,93910.0,93909.0,0.05]
[1745857941640,0.54,93910.0,93909.0,0.05]
[1745857942651,0.34,93910.0,93909.0,0.05]
[1745857943515,0.54,93910.0,93909.0,0.05]
[1745857944413,0.0474,93912.0,93911.0,0.05]
[1745857944944,0.953801,93912.0,93904.0,0.05]
[1745857945154,0.34,93909.0,93908.0,0.05]
[1745857945602,0.33,93909.0,93908.0,0.05]
[1745857946241,0.2,93910.0,93908.0,0.05]
[1745857946444,0.2,93909.0,93908.0,0.05]
[1745857954100,0.2,93909.0,93891.0,0.4015572]
[1745857954101,0.0476,93907.0,93891.0,0.4015572]
[1745857954304,0.0458,93908.0,93891.0,0.00013702]
[1745857954305,0.34,93900.0,93891.0,0.00013702]
[1745857954504,0.33269465,93901.0,93891.0,0.00013702]
[1745857954505,0.34,93898.0,93891.0,0.00013702]
[1745857954708,0.34,93896.0,93894.0,0.05]
[1745857954907,0.589243,93895.0,93894.0,0.05]
[1745857955312,0.34,93894.0,93893.0,0.05]
[1745857956321,0.34,93896.0,93893.0,0.05]
[1745857957016,0.34,93894.0,93891.0,0.00013702]
[1745857957289,0.3896,93892.0,93891.0,0.00013702]
[1745857957505,2.316751,93892.0,93891.0,0.00013702]
[1745857957663,0.4372,93892.0,93891.0,0.00013702]
[1745857957869,0.4671036,93892.0,93891.0,0.00013702]
[1745857958069,2.46046311,93892.0,93891.0,0.00013702]
[1745857958270,2.23309511,93892.0,93891.0,0.00013702]
[1745857958599,2.16360611,93892.0,93891.0,0.00013702]
[1745857958807,1.36947511,93892.0,93891.0,0.00013702]
[1745857959214,0.47767511,93892.0,93891.0,0.00013702]
[1745857959414,0.44777151,93892.0,93891.0,0.00013702]
[1745857959770,0.06017151,93892.0,93891.0,0.00013702]
[1745857961282,0.01057151,93892.0,93891.0,0.00013702]
[1745857961619,0.2,93894.0,93891.0,0.00013702]
[1745857962439,0.2109454,93894.0,93891.0,0.00113702]
[1745857963620,0.0109454,93894.0,93891.0,0.00113702]
[1745857963821,0.34,93896.0,93891.0,0.00113702]
[1745857965342,0.01070697,93896.0,93895.0,0.05]
[1745857965565,0.2,93898.0,93895.0,0.17269286]
[1745857965737,0.2,93898.0,93897.0,0.05]
[1745857965942,0.5507497,93898.0,93897.0,0.05]
[1745857966343,0.3507497,93898.0,93897.0,0.05]
[1745857966872,0.34,93897.0,93896.0,0.05]
[1745857969491,0.0107497,93898.0,93894.0,0.05]
[1745857969701,0.34,93902.0,93897.0,0.05]
[1745857970160,0.35065583,93902.0,93898.0,0.01580272]
[1745857970405,0.55065583,93902.0,93901.0,0.05]
[1745857970616,0.55065583,93902.0,93901.0,0.15689014]
[1745857971624,0.01065583,93902.0,93901.0,0.15689014]
[1745857971825,0.34,93909.0,93901.0,0.15689014]
[1745857972040,0.34,93909.0,93905.0,0.05]
[1745857972599,0.35068894,93909.0,93905.0,0.05]
[1745857972799,0.01068894,93909.0,93905.0,0.05]
[1745857973002,0.34,93914.0,93905.0,0.05]
[1745857973232,0.33269465,93915.0,93914.0,0.05]
[1745857973561,0.2,93916.0,93914.0,0.05]
[1745857973717,0.01060456,93916.0,93914.0,0.05]
[1745857973927,0.34,93917.0,93915.0,0.05]
[1745857974821,0.34,93917.0,93916.0,0.05]
[1745857975028,0.35083528,93917.0,93916.0,0.05]
[1745857975450,0.35083528,93917.0,93916.0,0.051]
[1745857975811,0.01083528,93917.0,93916.0,0.15789014]
[1745857976014,0.2,93921.0,93917.0,0.05]
[1745857976274,0.0004236,93929.0,93917.0,0.15689014]
[1745857976673,0.5108875,93918.0,93917.0,0.15689014]
[1745857978288,0.5108875,93918.0,93917.0,0.15789014]
[1745857979343,0.5108875,93918.0,93917.0,0.55944734]
[1745857979540,0.5108875,93918.0,93917.0,0.61549207]
[1745857979749,0.5,93918.0,93917.0,0.61549207]
[1745857979933,0.5,93918.0,93917.0,0.66359207]
[1745857980328,0.51068032,93918.0,93917.0,0.66359207]
[1745857982107,0.51068032,93918.0,93917.0,0.61549207]
[1745857982538,0.51068032,93918.0,93917.0,0.66459207]